bitfinex/quotes_ETHUSD_20210401
["timestamp","ask_amount","ask_price","bid_price","bid_amount"]
[1617309674467,0.06022194,1973.7,1973.3,0.53]
[1617309674666,1.0,1973.9,1973.4,5.28777646]
[1617309674864,1.0,1973.9,1973.4,11.35927946]
[1617309675063,1.0,1973.9,1973.4,21.19927946]
[1617309675261,1.0,1973.9,1973.5,1.2]
[1617309675461,1.0,1973.9,1973.4,26.20927946]
[1617309675661,1.0,1973.9,1973.4,21.19927946]
[1617309676064,1.0,1973.9,1973.4,26.20927946]
[1617309676263,0.95,1973.9,1973.5,2.0261233]
[1617309676486,0.95,1973.9,1973.5,6.4261233]
[1617309677086,0.95,1973.9,1973.5,4.4]
[1617309678488,0.95,1973.9,1973.8,0.10431634]
[1617309679712,0.95,1973.9,1973.8,35.40331634]
[1617309679913,0.95,1973.9,1973.8,41.80331634]
[1617309680317,2.71,1974.4,1973.8,41.80331634]
[1617309680533,2.3,1974.4,1974.0,12.60459]
[1617309680729,2.3,1974.4,1974.1,10.28686488]
[1617309680928,2.3,1974.4,1974.1,13.78686488]
[1617309681111,2.3,1974.4,1974.1,23.81208828]
[1617309681316,1.0,1974.4,1974.1,24.43048828]
[1617309681511,1.38,1974.9,1974.2,29.05]
[1617309681750,1.38,1974.9,1974.5,7.59279]
[1617309681942,1.38,1974.9,1974.6,5.25917732]
[1617309682147,1.0,1974.9,1974.6,13.67277732]
[1617309682944,1.0,1974.9,1974.6,17.09277732]
[1617309683150,1.0,1974.9,1974.6,26.39867051]
[1617309683349,0.41,1975.5,1975.0,0.4]
[1617309683545,0.41,1975.5,1975.0,4.44890714]
[1617309683742,1.0,1975.9,1975.0,15.18430714]
[1617309683945,1.0,1975.9,1975.1,0.09132494]
[1617309684566,0.39,1975.6,1975.1,0.09132494]
[1617309685165,1.0,1975.9,1975.1,4.14023208]
[1617309685564,0.39,1975.5,1975.1,4.14023208]
[1617309685764,0.39,1975.5,1975.1,3.31132494]
[1617309685965,0.39,1975.7,1975.1,3.31132494]
[1617309686165,0.39,1975.7,1975.1,3.22]
[1617309686367,0.39,1975.7,1975.1,7.26890714]
[1617309686988,0.41,1975.6,1975.1,3.22]
[1617309687587,0.39,1975.7,1975.1,3.22]
[1617309687990,1.0,1975.9,1975.1,7.26890714]
[1617309688789,0.4,1975.6,1975.1,3.22]
[1617309688993,1.0,1975.9,1975.1,8.46890714]
[1617309689395,1.0,1975.9,1975.3,0.14]
[1617309689616,1.0,1975.9,1975.4,0.48132494]
[1617309689814,1.0,1975.9,1975.4,10.13492494]
[1617309690214,1.4,1975.9,1975.4,23.46890454]
[1617309690414,1.4,1975.9,1975.4,26.44480454]
[1617309690614,1.0,1975.9,1975.4,26.44480454]
[1617309691415,0.95,1975.9,1975.7,0.38]
[1617309691614,0.95,1975.9,1975.6,0.09132494]
[1617309691819,1.4,1976.4,1975.7,29.05]
[1617309692018,1.0,1976.4,1975.8,4.11934536]
[1617309692239,1.0,1976.4,1975.9,4.02802042]
[1617309692435,1.0,1976.4,1976.0,0.09132494]
[1617309692640,1.0,1976.4,1975.9,0.09132494]
[1617309692835,0.95,1976.4,1975.9,0.09132494]
[1617309693034,0.95,1976.4,1975.9,3.47132494]
[1617309693433,0.95,1976.4,1976.3,0.11536267]
[1617309693635,1.35,1976.4,1976.3,0.11536267]
[1617309695663,0.95,1976.4,1976.3,0.11536267]
[1617309695863,1.34,1976.4,1976.3,0.11536267]
[1617309696664,11.94,1976.4,1976.3,0.11536267]
[1617309697885,1.34,1976.4,1976.3,0.11536267]
[1617309699087,0.95,1976.4,1976.3,0.11536267]
[1617309700313,1.34,1976.4,1976.3,0.11536267]
[1617309706564,15.19,1976.4,1976.3,0.06536267]
[1617309707766,1.34,1976.4,1976.3,0.06536267]
[1617309708394,9.59,1976.4,1976.3,0.06536267]
[1617309708595,1.34,1976.4,1976.3,0.06536267]
[1617309708796,0.95,1976.4,1976.3,0.06536267]
[1617309709001,0.95,1976.4,1976.3,9.54376267]
[1617309711220,1.34,1976.4,1976.3,9.54376267]
[1617309712647,6.50371803,1976.4,1976.3,9.54376267]
[1617309712850,6.50371803,1976.4,1975.4,2.0]
[1617309713046,14.55,1975.6,1975.4,2.0]
[1617309713250,20.36,1975.5,1975.4,2.0]
[1617309713647,27.95261,1975.5,1975.4,2.0]
[1617309714645,8.00261,1975.5,1975.4,2.0]
[1617309715450,20.00261,1975.5,1975.4,2.0]
[1617309715868,21.20261,1975.5,1975.4,2.0]
[1617309716066,21.20261,1975.5,1974.4,0.09132494]
[1617309716270,0.39,1975.0,1974.5,0.14]
[1617309716468,0.4,1974.8,1974.5,0.14]
[1617309716667,0.39,1975.0,1974.5,0.14]
[1617309717669,30.765,1975.6,1974.5,0.14]
[1617309717670,7.59445,1975.2,1974.5,0.14]
[1617309717871,0.4,1975.3,1974.6,0.09132494]
[1617309718075,5.41,1975.6,1974.8,0.48132494]
[1617309718270,5.41,1975.6,1975.0,0.14]
[1617309718271,0.4,1975.6,1975.0,0.14]
[1617309718504,14.9697,1975.8,1975.1,0.09132494]
[1617309718705,14.9697,1975.8,1975.3,0.14]
[1617309718910,14.43,1976.1,1975.4,0.09132494]
[1617309718911,0.39,1976.1,1975.4,0.09132494]
[1617309719103,0.39,1976.1,1975.7,0.12220138]
[1617309719305,0.39,1976.1,1975.7,7.03610138]
[1617309719899,0.39,1976.1,1975.7,17.86559138]
[1617309720096,0.39,1976.1,1975.7,25.86559138]
[1617309720295,0.39,1976.1,1975.7,26.88939138]
[1617309721121,0.39,1976.1,1975.7,19.29990138]
[1617309721921,7.59019,1976.3,1975.7,19.29990138]
[1617309722122,0.4,1976.2,1975.8,0.14]
[1617309722524,0.39,1976.0,1975.8,0.09]
[1617309722724,0.39,1975.9,1975.7,1.14600138]
[1617309722924,0.38,1975.8,1975.7,0.12220138]
[1617309724147,7.9722,1975.8,1975.7,0.12220138]
[1617309724346,16.6722,1975.8,1975.7,0.12220138]
[1617309724746,7.9722,1975.8,1975.7,0.12220138]
[1617309725345,18.6722,1975.8,1975.7,0.12220138]
[1617309725545,7.9722,1975.8,1975.7,0.12220138]
[1617309726146,16.9722,1975.8,1975.7,0.12220138]
[1617309726371,18.1722,1975.8,1975.7,0.12220138]
[1617309726971,18.1722,1975.8,1975.6,2.0]
[1617309727173,34.39,1975.7,1975.6,2.0]
[1617309727373,35.59,1975.7,1975.6,2.0]
[1617309727577,35.59,1975.7,1974.4,0.09132494]
[1617309727777,43.1846,1975.7,1974.4,0.09132494]
[1617309727973,0.41,1974.9,1974.4,0.09132494]
[1617309728174,0.69,1974.9,1974.4,0.09132494]
[1617309728375,0.4,1974.8,1974.4,0.09132494]
[1617309728575,0.28,1974.9,1974.3,0.14]
[1617309728771,0.28,1974.9,1974.4,0.09132494]
[1617309730198,7.59442,1975.2,1974.4,5.48132494]
[1617309730397,0.39,1975.2,1974.6,0.23132494]
[1617309730596,0.28,1975.4,1974.6,0.23132494]
[1617309730796,0.68,1975.4,1974.8,0.14]
[1617309730995,0.68,1975.4,1974.8,0.23132494]
[1617309731624,12.65979,1976.0,1974.8,10.98428494]
[1617309731824,3.556,1976.6,1975.1,0.23132494]
[1617309731825,14.4387,1976.3,1975.1,0.23132494]
[1617309732029,14.4387,1976.3,1975.4,0.14]
[1617309732030,0.4,1976.2,1975.4,0.14]
[1617309732221,0.4,1976.2,1975.1,18.56378336]
[1617309732222,0.38,1976.1,1975.6,0.14]
[1617309732422,0.38,1976.1,1975.6,7.3183]
[1617309732824,0.39,1976.2,1975.6,19.0783]
[1617309733021,0.39,1976.2,1975.7,0.09132494]
[1617309733420,0.39,1976.2,1975.7,7.55918336]
[1617309733824,0.39,1976.2,1975.7,3.55132494]
[1617309734021,0.39,1976.2,1976.1,0.14882294]
[1617309734249,0.39,1976.2,1976.1,6.79062294]
[1617309734444,14.4274,1976.4,1976.1,6.79062294]
[1617309734645,1.33,1976.4,1976.1,6.79062294]
[1617309737065,0.95,1976.4,1976.1,6.79062294]
[1617309738475,0.95,1976.4,1976.2,4.00785842]
[1617309739074,0.95,1976.4,1976.3,33.78652]
[1617309739272,0.0001,1976.4,1976.3,38.79652]
[1617309739497,1.0,1976.9,1976.6,2.0227051]
[1617309739694,1.0,1976.9,1976.6,12.7473051]
[1617309740093,1.0,1976.9,1976.6,24.6073051]
[1617309740499,1.0,1976.9,1976.7,11.58249444]
[1617309740699,1.0,1976.9,1976.8,34.01]
[1617309740898,1.0,1976.9,1976.8,42.01]
[1617309741098,1.0,1976.9,1976.8,29.0]
[1617309741298,1.0,1976.9,1976.8,35.68]
[1617309741497,1.0,1976.9,1976.8,43.68]
[1617309742317,1.0,1976.9,1976.8,55.0552597]
[1617309743718,0.0001,1976.9,1976.8,55.0552597]
[1617309744118,0.0001,1976.9,1976.8,55.2097732]
[1617309744748,0.0001,1976.9,1976.8,43.8345135]
[1617309746147,0.0001,1976.9,1976.8,29.1545135]
[1617309746548,0.0001,1976.9,1976.8,37.1545135]
[1617309747568,0.0001,1976.9,1976.8,29.1545135]
[1617309747766,0.0001,1976.9,1976.8,33.5145135]
[1617309748367,0.0001,1976.9,1976.8,41.5145135]
[1617309752823,0.0001,1976.9,1976.8,52.8897732]
[1617309753025,0.0001,1976.9,1976.8,41.5145135]
[1617309753224,0.0001,1976.9,1976.8,33.5145135]
[1617309753624,0.0001,1976.9,1976.8,41.5145135]
[1617309755027,0.0001,1976.9,1976.8,12.5145135]
[1617309755248,0.0001,1976.9,1976.8,8.1545135]
[1617309755449,0.0001,1976.9,1976.8,0.1545135]
[1617309755651,0.3901,1976.9,1976.8,0.1545135]
[1617309755855,18.5901,1976.9,1976.8,0.1545135]
[1617309756051,26.6452,1976.9,1976.8,0.1545135]
[1617309756251,2.84,1976.8,1976.5,2.0]
[1617309756454,19.5,1976.6,1975.5,0.09132494]
[1617309756652,19.5,1976.6,1975.5,5.09132494]
[1617309756653,3.24,1976.5,1975.5,5.09132494]
[1617309756885,0.38,1976.1,1975.7,0.14]
[1617309757081,0.38,1976.1,1975.7,5.15]
[1617309757280,7.1187,1976.1,1975.7,0.14]
[1617309757682,6.7387,1976.1,1975.7,0.14]
[1617309757885,6.7387,1976.1,1975.8,0.39]
[1617309758085,6.7387,1976.1,1975.8,5.57738164]
[1617309758281,1.1537,1976.2,1975.9,0.39]
[1617309758483,0.0001,1976.9,1976.1,0.09132494]
[1617309758484,0.38,1976.7,1976.1,0.09132494]
[1617309758686,0.0001,1976.9,1976.2,8.6218]
[1617309758887,0.3801,1976.9,1976.4,5.01]
[1617309759086,0.3801,1976.9,1976.5,15.58565]
[1617309759284,0.3801,1976.9,1976.5,21.79565]
[1617309759483,0.0001,1976.9,1976.6,9.03]
[1617309759683,0.0001,1976.9,1976.6,4.02]
[1617309759883,0.0001,1976.9,1976.6,12.5749]
[1617309760089,0.0001,1976.9,1976.7,2.0]
[1617309762298,0.0001,1976.9,1976.7,5.48]
[1617309762502,0.0001,1976.9,1976.7,9.50715594]
[1617309762707,0.0001,1976.9,1976.8,34.01]
[1617309762901,0.040011,1977.0,1976.9,29.0]
[1617309763127,0.040011,1977.0,1976.9,36.58403]
[1617309763320,0.040011,1977.0,1976.9,51.84403]
[1617309765526,0.4,1977.7,1977.1,0.09132494]
[1617309765751,0.4,1977.7,1977.6,0.19600265]
[1617309769183,8.5836,1977.9,1977.6,0.19600265]
[1617309769382,1.39,1977.9,1977.6,0.19600265]
[1617309770182,5.59,1977.7,1977.6,0.19600265]
[1617309770383,0.39,1977.7,1977.6,0.19600265]
[1617309770999,7.98404,1977.8,1977.6,0.19600265]
[1617309772602,20.17463,1977.7,1977.6,0.19600265]
[1617309772803,7.97463,1977.7,1977.6,0.19600265]
[1617309773626,7.97463,1977.7,1977.6,0.31155312]
[1617309775424,7.97463,1977.7,1977.6,0.11555047]
[1617309777151,0.39,1977.7,1977.6,0.11555047]
[1617309779178,7.97449,1977.7,1977.6,0.11555047]
[1617309779580,9.17449,1977.7,1976.7,2.0]
[1617309779779,0.38,1976.8,1976.7,2.0]
[1617309780379,7.96779,1976.8,1976.7,2.0]
[1617309780780,0.38,1976.8,1976.7,2.0]
[1617309781615,36.4632,1977.6,1976.7,2.0]
[1617309781616,0.39,1977.2,1976.7,2.0]
[1617309781817,5.01,1977.5,1976.7,2.0]
[1617309781818,0.39,1977.5,1976.7,2.0]
[1617309782018,0.39,1977.5,1976.7,2.09132494]
[1617309782019,0.28,1977.4,1976.7,2.09132494]
[1617309782217,0.28,1977.4,1976.9,0.14]
[1617309782419,15.5458,1977.6,1976.9,0.23132494]
[1617309782619,15.5458,1977.6,1977.2,7.58359]
[1617309782817,15.5458,1977.6,1977.2,7.032038]
[1617309783014,15.5458,1977.6,1977.2,15.032038]
[1617309783215,15.5458,1977.6,1977.2,13.01]
[1617309783814,15.5458,1977.6,1977.5,10.88000214]
[1617309784035,1.4,1977.9,1977.5,10.88000214]
[1617309784237,1.0,1977.9,1977.5,18.88000214]
[1617309784436,1.0,1977.9,1977.5,21.74000214]
[1617309785036,0.95,1977.9,1977.5,21.74000214]
[1617309785237,0.95,1977.9,1977.6,7.67321494]
[1617309785436,0.95,1977.9,1977.6,11.96189]
[1617309786239,0.95,1977.9,1977.6,7.58189]
[1617309788084,0.95,1977.9,1977.6,15.58189]
[1617309788285,0.95,1977.9,1977.6,20.59189]
[1617309788484,0.95,1977.9,1977.6,30.63709]
[1617309788890,0.95,1977.9,1977.6,30.25709]
[1617309789085,0.95,1977.9,1977.6,17.24709]
[1617309789688,0.4,1977.8,1977.6,3.22]
[1617309790286,0.4,1977.8,1977.5,0.18000214]
[1617309790485,0.95,1977.9,1977.5,0.18000214]
[1617309791284,0.95,1977.9,1977.5,5.19000214]
[1617309791490,0.95,1977.9,1977.5,7.76213214]
[1617309791687,0.95,1977.9,1977.7,5.01]
[1617309792304,0.95,1977.9,1977.6,7.0316114]
[1617309792704,0.95,1977.9,1977.6,22.6134014]
[1617309792904,0.95,1977.9,1977.6,26.0134014]
[1617309793504,0.95,1977.9,1977.6,23.99179]
[1617309793904,0.95,1977.9,1977.7,7.5814]
[1617309794107,0.95,1977.9,1977.7,11.1614]
[1617309794725,0.95,1977.9,1977.8,14.61]
[1617309794924,0.95,1977.9,1977.8,18.47]
[1617309795325,0.95,1977.9,1977.8,3.86]
[1617309795525,0.95,1977.9,1977.6,13.01]
[1617309795727,0.95,1977.9,1977.6,5.01]
[1617309799976,1.34,1977.9,1977.6,5.01]
[1617309800176,0.4,1977.7,1977.6,5.01]
[1617309800577,0.4,1977.7,1977.5,8.18000214]
[1617309800776,0.4,1977.7,1977.5,0.18000214]
[1617309801175,0.41,1977.7,1977.5,0.18000214]
[1617309801378,0.95,1977.9,1977.5,0.18000214]
[1617309801576,0.41,1977.8,1977.5,0.18000214]
[1617309802808,0.95,1977.9,1977.6,5.01]
[1617309803012,0.95,1977.9,1977.5,0.18000214]
[1617309803210,8.93367,1977.9,1977.5,0.18000214]
[1617309804610,0.39,1977.8,1977.5,0.18000214]
[1617309804814,0.95,1977.9,1977.5,0.18000214]
[1617309805045,1.33,1977.9,1977.5,0.18000214]
[1617309805846,0.39,1977.7,1977.5,0.18000214]
[1617309806444,1.2795,1977.8,1977.5,0.18000214]
[1617309806445,0.4,1977.6,1977.5,0.18000214]
[1617309810278,6.5,1977.6,1977.5,0.18000214]
[1617309810878,0.4,1977.6,1977.5,0.18000214]
[1617309811880,0.28,1977.8,1977.5,0.18000214]
[1617309812081,0.95,1977.9,1977.5,0.18000214]
[1617309812901,0.41,1977.8,1977.5,0.18000214]
[1617309814304,0.41,1977.8,1977.5,7.76281214]
[1617309814504,0.95,1977.9,1977.5,15.76281214]
[1617309814704,0.95,1977.9,1977.5,8.18000214]
[1617309815727,0.38,1977.8,1977.5,0.18000214]
[1617309816129,0.4,1977.7,1977.5,0.18000214]
[1617309816928,7.98448,1977.7,1977.5,0.18000214]
[1617309817528,16.4,1977.6,1977.5,0.18000214]
[1617309817732,16.4,1977.6,1976.7,2.09132494]
[1617309817937,0.38,1976.8,1976.7,2.09132494]
[1617309818160,4.02715594,1977.5,1976.7,2.0]
[1617309818161,8.9716,1977.0,1976.7,2.0]
[1617309819157,16.55931,1977.0,1976.7,2.0]
[1617309819759,16.16931,1977.0,1976.7,2.0]
[1617309819959,8.5816,1977.0,1976.7,2.0]
[1617309820683,0.687,1977.4,1976.8,0.14]
[1617309820884,14.4213,1977.6,1976.8,0.23132494]
[1617309821080,14.8213,1977.6,1976.8,5.24132494]
[1617309821278,0.68,1977.6,1976.8,5.24132494]
[1617309821478,0.364,1977.5,1976.8,13.24132494]
[1617309821680,0.764,1977.5,1976.8,13.24132494]
[1617309821881,7.58476,1977.7,1977.0,7.81584494]
[1617309822083,0.69,1977.6,1977.0,20.82584494]
[1617309822280,0.69,1977.6,1977.0,16.68132494]
[1617309822679,0.69,1977.6,1977.3,0.1698079]
[1617309823282,0.69,1977.6,1977.3,7.7531779]
[1617309823511,0.41,1977.5,1977.3,0.1698079]
[1617309823712,0.39,1977.4,1977.3,0.1698079]
[1617309824111,6.09,1977.4,1977.3,0.1698079]
[1617309824311,6.09,1977.4,1976.9,10.11231]
[1617309824712,0.4,1977.3,1976.9,10.11231]
[1617309825312,0.4,1977.3,1976.8,0.14]
[1617309825711,0.4,1977.3,1976.9,0.09132494]
[1617309825915,0.308,1977.4,1976.9,0.09132494]
[1617309826327,0.39,1977.3,1976.9,0.09132494]
[1617309826527,0.39,1977.3,1976.9,5.01]
[1617309826726,0.39,1977.3,1976.8,0.23132494]
[1617309826926,0.4,1977.2,1976.8,3.57132494]
[1617309827128,0.4,1977.2,1976.9,7.58493]
[1617309827327,7.58549,1977.5,1976.9,7.58493]
[1617309827529,8.27549,1977.5,1977.0,0.23794488]
[1617309827727,8.27549,1977.5,1977.0,0.14661994]
[1617309827927,0.69,1977.5,1977.0,0.14661994]
[1617309828532,0.69,1977.5,1977.0,7.73109994]
[1617309828760,0.69,1977.5,1977.0,8.14661994]
[1617309829161,0.41,1977.4,1977.0,0.14661994]
[1617309829360,0.41,1977.3,1977.0,0.14661994]
[1617309829762,7.99603,1977.3,1977.0,0.14661994]
[1617309830360,0.39,1977.1,1977.0,0.14661994]
[1617309830763,7.97662,1977.1,1977.0,0.14661994]
[1617309830963,14.62662,1977.1,1977.0,0.14661994]
[1617309831384,20.63,1976.8,1976.7,2.0]
[1617309831985,20.63,1976.8,1975.8,0.006]
[1617309831986,29.69946,1976.8,1975.8,0.006]
[1617309832188,0.39,1976.2,1975.8,0.006]
[1617309832389,0.39,1976.2,1975.7,2.006]
[1617309832390,0.4,1975.9,1975.7,2.006]
[1617309832585,0.4,1975.9,1975.7,2.0]
[1617309832786,23.352,1975.8,1975.7,2.0]
[1617309832986,30.94495,1975.8,1975.7,2.0]
[1617309833579,32.14495,1975.8,1975.7,2.0]
[1617309834225,37.15495,1975.8,1975.7,2.0]
[1617309834422,14.50495,1975.8,1975.7,2.0]
[1617309835022,20.40495,1975.8,1975.4,10.23090695]
[1617309835230,0.39,1975.6,1975.4,10.23090695]
[1617309836025,1.994,1975.7,1975.4,10.23090695]
[1617309836425,0.4,1976.1,1975.6,0.12624872]
[1617309836633,0.28,1976.1,1975.6,0.12624872]
[1617309837033,0.39,1975.9,1975.6,0.12624872]
[1617309837442,0.38,1976.0,1975.6,0.12624872]
[1617309838835,0.4,1975.8,1975.6,0.12624872]
[1617309839256,0.4,1975.8,1975.5,0.14]
[1617309839456,0.39,1975.6,1975.4,10.23090695]
[1617309840660,29.5749,1975.5,1975.4,10.23090695]
[1617309840858,29.5749,1975.5,1975.1,1.0]
[1617309841258,0.4,1975.3,1975.1,1.0]
[1617309841664,1.6395,1975.4,1975.1,1.0]
[1617309842283,0.9515,1975.4,1975.1,1.0]
[1617309842481,0.39,1975.7,1975.1,6.01]
[1617309842681,0.726,1975.7,1975.1,8.73]
[1617309843081,0.726,1975.7,1975.1,16.73]
[1617309843283,0.726,1975.7,1975.1,14.01]
[1617309843681,0.726,1975.7,1975.1,6.01]
[1617309844081,0.726,1975.7,1975.1,1.09132494]
[1617309844292,8.31892,1975.7,1975.1,1.0]
[1617309844507,0.4,1975.4,1975.1,1.0]
[1617309845903,7.59369,1975.5,1975.1,1.0]
[1617309846307,0.73,1975.6,1975.1,1.0]
[1617309846510,7.5,1975.2,1975.1,1.0]
[1617309847945,7.5,1975.2,1974.7,1.5]
[1617309848145,8.85,1975.1,1974.7,1.5]
[1617309848345,8.85,1975.1,1974.7,0.14]
[1617309848346,0.39,1975.0,1974.7,0.14]
[1617309848545,0.287,1975.2,1974.7,0.14]
[1617309848745,0.38,1975.1,1974.7,0.14]
[1617309849759,0.38,1974.8,1974.6,1.0]
[1617309849961,0.38,1975.1,1974.6,1.0]
[1617309849962,13.1,1974.7,1974.6,1.0]
[1617309850558,14.3,1974.7,1974.6,1.0]
[1617309850758,24.35199788,1974.7,1974.6,1.0]
[1617309850957,17.10199788,1974.7,1974.6,1.0]
[1617309851157,24.69908788,1974.7,1974.6,1.0]
[1617309851758,0.4,1974.7,1974.6,1.0]
[1617309851957,10.13,1974.7,1974.6,1.0]
[1617309852785,22.68,1974.7,1974.6,1.0]
[1617309852988,30.7428,1974.7,1974.6,1.0]
[1617309853191,41.92267586,1974.7,1974.6,0.0001]
[1617309853391,41.92267586,1974.7,1974.4,0.3]
[1617309853392,29.39,1974.5,1974.4,0.3]
[1617309853591,35.6,1974.5,1974.4,0.3]
[1617309853786,35.6,1974.5,1974.4,0.0001]
[1617309854389,45.7331,1974.5,1974.4,0.0001]
[1617309855244,52.7331,1974.5,1974.4,0.0001]
[1617309855842,53.91297586,1974.5,1974.4,0.0001]
[1617309856046,21.6,1973.7,1973.6,1.0]
[1617309856444,28.1965,1973.7,1973.6,1.0]
[1617309856844,35.7979,1973.7,1973.6,1.0]
[1617309857650,35.7979,1973.7,1973.6,0.0001]
[1617309857852,36.9979,1973.7,1973.6,0.0001]
[1617309858053,42.0079,1973.7,1973.6,0.0001]
[1617309858653,49.0079,1973.7,1973.6,0.0001]
[1617309860672,79.0079,1973.7,1973.6,0.0001]
[1617309861274,80.18777586,1973.7,1973.6,0.0001]
[1617309861676,29.0,1973.6,1972.7,10.3]
[1617309861881,23.24,1972.8,1972.7,10.3]
[1617309862081,31.4303,1972.8,1972.7,10.3]
[1617309863097,37.83643,1972.8,1972.7,9.8826]
[1617309863297,40.21630586,1972.8,1972.7,9.8826]
[1617309863496,52.22630586,1972.8,1972.7,9.8826]
[1617309864899,21.17630586,1972.8,1972.7,0.0001]
[1617309865105,30.17987586,1972.7,1972.6,0.0001]
[1617309865307,36.78987586,1972.7,1972.6,0.0001]
[1617309865523,35.58987586,1972.7,1972.6,0.0001]
[1617309865720,6.58987586,1972.7,1972.6,0.0001]
[1617309866119,5.41,1972.7,1972.6,0.0001]
[1617309866719,15.15,1972.7,1972.6,0.0001]
[1617309867319,16.32987586,1972.7,1972.6,0.0001]
[1617309867719,21.77987586,1972.7,1972.6,0.0001]
[1617309868543,27.67987586,1972.7,1972.6,0.0001]
[1617309868945,21.77987586,1972.7,1972.6,0.0001]
[1617309869146,16.32987586,1972.7,1972.6,0.0001]
[1617309869950,1.17987586,1972.8,1972.6,0.0001]
[1617309870776,1.17987586,1972.8,1972.7,29.4]
[1617309870976,7.60047,1973.9,1972.7,38.81]
[1617309871176,7.60047,1973.9,1973.1,8.8757]
[1617309871375,7.60047,1973.9,1973.3,0.14]
[1617309871376,7.88047,1973.9,1973.3,0.14]
[1617309871774,25.74645,1974.3,1973.3,0.54]
[1617309871775,15.2604,1973.8,1973.3,0.54]
[1617309871981,7.59825,1974.5,1973.5,9.2341]
[1617309872181,17.13256,1974.7,1973.7,0.09132494]
[1617309872182,0.38,1974.4,1973.7,0.09132494]
[1617309872379,13.7896,1974.6,1973.7,0.09132494]
[1617309872576,4.48,1974.5,1973.7,0.09132494]
[1617309872776,0.364,1974.3,1973.7,0.14]
[1617309872978,21.04,1973.8,1973.7,0.14]
[1617309873184,4.69,1973.7,1973.6,1.1763]
[1617309873596,4.69,1973.7,1973.3,2.0]
[1617309873796,4.28,1973.7,1973.3,2.0]
[1617309873996,4.66,1973.7,1973.3,2.0]
[1617309874196,3.78,1973.6,1973.3,2.0]
[1617309874398,4.17,1973.6,1973.3,2.0]
[1617309874801,26.01,1973.4,1973.3,2.0]
[1617309875104,26.01,1973.4,1972.6,0.09142494]
[1617309875304,0.4,1973.0,1972.6,0.0001]
[1617309875501,0.68,1973.0,1972.6,0.0001]
[1617309876119,8.28398,1973.0,1972.6,0.0001]
[1617309877320,7.88398,1973.0,1972.6,0.0001]
[1617309877526,0.28,1973.2,1972.6,0.0001]
[1617309877726,22.5791,1973.6,1972.7,0.4]
[1617309877929,22.5791,1973.6,1972.8,4.13073066]
[1617309878326,22.5791,1973.6,1972.8,9.14073066]
[1617309878564,22.5791,1973.6,1972.8,18.13963066]
[1617309878763,22.5791,1973.6,1972.8,14.1489]
[1617309878965,14.3789,1973.6,1972.8,19.33963066]
[1617309879166,14.3789,1973.6,1973.0,0.14]
[1617309879371,14.3789,1973.6,1973.3,0.39]
[1617309879566,14.3789,1973.6,1973.3,8.2408]
[1617309879766,14.3789,1973.6,1973.3,7.8508]
[1617309881168,0.4,1973.5,1973.3,7.8508]
[1617309881369,14.3789,1973.6,1973.3,7.8508]
[1617309881970,23.9,1973.4,1973.3,7.8508]
[1617309883368,18.89,1973.4,1973.3,7.8508]
[1617309884196,23.9,1973.4,1973.3,7.8508]
[1617309884594,23.9,1973.4,1973.2,0.831]
[1617309884795,5.4,1973.3,1972.6,0.0001]
[1617309884998,0.4,1973.0,1972.6,0.0001]
[1617309885301,0.4,1972.9,1972.6,0.0001]
[1617309885495,2.68,1972.8,1972.6,0.0001]
[1617309886298,0.4,1972.9,1972.6,0.0001]
[1617309886528,0.4,1972.8,1972.6,0.0001]
[1617309886730,7.60509,1972.8,1972.6,0.0001]
[1617309886929,18.95121,1973.1,1972.6,0.0001]
[1617309886930,5.39,1973.1,1972.6,0.0001]
[1617309887130,13.5273,1973.4,1972.6,0.0001]
[1617309887330,0.667,1973.3,1972.6,0.0001]
[1617309888331,0.4,1972.9,1972.6,0.0001]
[1617309888531,7.88359,1973.0,1972.6,0.0001]
[1617309888933,0.28,1973.0,1972.6,0.0001]
[1617309890548,0.28,1973.0,1972.6,0.3801]
[1617309890753,10.13807,1973.3,1972.6,0.3801]
[1617309890754,0.28,1973.3,1972.7,0.38]
[1617309890955,41.529,1973.6,1972.9,0.38]
[1617309891153,29.0365,1973.6,1972.9,0.38]
[1617309891355,29.0365,1973.6,1973.0,0.14]
[1617309891553,29.0365,1973.6,1973.0,0.32554349]
[1617309891777,29.4265,1973.6,1973.0,0.32554349]
[1617309891975,14.7689,1973.6,1973.0,0.32554349]
[1617309892178,0.39,1973.4,1973.0,0.18554349]
[1617309892378,0.39,1973.2,1973.0,0.18554349]
[1617309892578,14.3789,1973.6,1973.0,0.18554349]
[1617309892974,14.6589,1973.6,1973.0,0.18554349]
[1617309893179,0.38,1973.5,1973.0,0.18554349]
[1617309893375,0.4,1973.3,1973.0,0.18554349]
[1617309893775,0.28,1973.4,1973.0,0.18554349]
[1617309893981,14.7789,1973.6,1973.0,0.18554349]
[1617309894175,0.28,1973.4,1973.0,0.18554349]
[1617309894409,0.67,1973.4,1973.0,0.18554349]
[1617309894611,0.28,1973.4,1973.0,0.18554349]